[Event "8th Ali Ipek Tournament 2020"]
[Site "Ankara"]
[Date "2020.03.08"]
[Round "6.18"]
[White "Gokdogan, Alperen"]
[Black "Vural, Burak"]
[Result "1/2-1/2"]
[ECO "B22"]
[WhiteElo "1305"]
[BlackElo "1604"]
[Annotator "NA"]
[PlyCount "73"]
[EventDate "2020.03.04"]
[EventType "swiss"]
[EventCountry "TUR"]
[SourceTitle "playchess.com"]
[Source "ChessBase"]
[SourceQuality "1"]
[TimeControl "5400+30"]

1. e4 {[%emt 0:00:30]} c5 {[%emt 0:00:30]} 2. c3 {[%emt 0:00:00]} Nf6 {[%emt 0:00:30]} 3. e5 {[%emt 0:00:00]} Nd5 {[%emt 0:00:30]} 4. Nf3 {[%emt 0:01:30]} e6 {[%emt 0:01:30]} 5. Bc4 {[%emt 0:02:30]} d6 {[%emt 0:02:30]} 6. d4 {[%emt 0:00:30]} cxd4 {[%emt 0:01:30]} 7. cxd4 {[%emt 0:00:30]} Nc6 {[%emt 0:01:30]} 8. O-O {[%emt 0:04:30]} Be7 {[%emt 0:02:30]} 9. Re1 {[%emt 0:00:30]} O-O {[%emt 0:02:30]} 10. a3 {[%emt 0:04:30]} Qc7 {[%emt 0:14:30]} 11. Nbd2 {[%emt 0:09:30]} Rd8 {[%emt 0:06:30]} 12. Qc2 {[%emt 0:03:30]} Na5 {[%emt 0:12:30]} 13. Bd3 {[%emt 0:00:30]} Qxc2 {[%emt 0:00:30]} 14. Bxc2 {[%emt 0:00:30]} Nb6 {[%emt 0:02:30]} 15. b3 {[%emt 0:02:30]} Bd7 {[%emt 0:01:30]} 16. Bb2 {[%emt 0:00:30]} Rac8 {[%emt 0:02:30]} 17. Rac1 {[%emt 0:02:30]} dxe5 {[%emt 0:11:30]} 18. dxe5 {[%emt 0:02:30]} Bc6 {[%emt 0:03:30]} 19. b4 {[%emt 0:02:30]} Bxf3 {[%emt 0:01:30]} 20. bxa5 {[%emt 0:04:30]} Rxd2 {[%emt 0:12:13]} 21. axb6 {[%emt 0:00:30]} Bc6 {[%emt 0:02:10]} 22. bxa7 {[%emt 0:00:30]} Bc5 {[%emt 0:00:43]} 23. Rf1 {[%emt 0:01:30]} Bxa7 {[%emt 0:00:34]} 24. Bc3 {[%emt 0:01:30]} Rd7 {[%emt 0:01:14]} 25. Bb2 {[%emt 0:03:30]} Kf8 {[%emt 0:02:26]} 26. h4 {[%emt 0:01:30]} Bd4 {[%emt 0:02:21]} 27. Bxd4 {[%emt 0:01:30]} Rxd4 {[%emt 0:00:10]} 28. f4 {[%emt 0:04:30]} Rd2 {[%emt 0:03:41]} 29. Be4 {[%emt 0:02:30]} Ra8 {[%emt 0:03:09]} 30. Bxc6 {[%emt 0:00:30]} bxc6 {[%emt 0:00:06]} 31. Rxc6 {[%emt 0:00:30]} Rxa3 {[%emt 0:00:20]} 32. Rfc1 {[%emt 0:01:30]} g6 {[%emt 0:01:06]} 33. R6c2 {[%emt 0:00:30]} Rd4 {[%emt 0:01:02]} 34. Rc4 {[%emt 0:00:30]} Rdd3 {[%emt 0:00:51]} 35. Kh2 {[%emt 0:02:30]} Rg3 {[%emt 0:01:11]} 36. Rg1 {[%emt 0:00:30]} Kg7 {[%emt 0:00:49]} 37. Rc7 {[%emt 0:00:30]} 1/2-1/2

[Event "8th Ali Ipek Tournament 2020"]
[Site "Ankara"]
[Date "2020.03.08"]
[Round "6.19"]
[White "Aral, Demir"]
[Black "Yilmaz, Baver"]
[Result "1-0"]
[ECO "C68"]
[WhiteElo "1554"]
[BlackElo "1446"]
[Annotator "NA"]
[PlyCount "63"]
[EventDate "2020.03.04"]
[EventType "swiss"]
[EventCountry "TUR"]
[SourceTitle "playchess.com"]
[Source "ChessBase"]
[SourceQuality "1"]
[TimeControl "5400+30"]

1. e4 {[%emt 0:00:30]} e5 {[%emt 0:00:30]} 2. Nf3 {[%emt 0:00:00]} Nc6 {[%emt 0:00:30]} 3. Bb5 {[%emt 0:00:00]} a6 {[%emt 0:00:00]} 4. Bxc6 {[%emt 0:00:30]} dxc6 {[%emt 0:00:00]} 5. O-O {[%emt 0:00:00]} Bg4 {[%emt 0:03:30]} 6. h3 {[%emt 0:00:00]} Bxf3 {[%emt 0:00:30]} 7. Qxf3 {[%emt 0:00:00]} Nf6 {[%emt 0:00:00]} 8. d3 {[%emt 0:00:00]} Qd7 {[%emt 0:01:00]} 9. Bg5 {[%emt 0:00:30]} Be7 {[%emt 0:00:30]} 10. Nc3 {[%emt 0:02:30]} h6 {[%emt 0:00:30]} 11. Bxf6 {[%emt 0:00:00]} Bxf6 {[%emt 0:01:30]} 12. Ne2 {[%emt 0:00:00]} Be7 {[%emt 0:00:30]} 13. Ng3 {[%emt 0:00:30]} g6 {[%emt 0:00:30]} 14. Rad1 {[%emt 0:04:30]} Bg5 {[%emt 0:05:30]} 15. Ne2 {[%emt 0:03:30]} h5 {[%emt 0:01:30]} 16. d4 {[%emt 0:07:30]} O-O-O {[%emt 0:04:30]} 17. dxe5 {[%emt 0:03:30]} Qxd1 {[%emt 0:09:30]} 18. Rxd1 {[%emt 0:00:00]} Rxd1+ {[%emt 0:00:30]} 19. Kh2 {[%emt 0:00:00]} Rd2 {[%emt 0:00:00]} 20. Nc3 {[%emt 0:01:30]} Rf8 {[%emt 0:01:00]} 21. h4 {[%emt 0:04:30]} Be7 {[%emt 0:01:30]} 22. Ne2 {[%emt 0:18:30]} f6 {[%emt 0:03:30]} 23. e6 {[%emt 0:01:30]} Bd6+ {[%emt 0:00:30]} 24. g3 {[%emt 0:01:30]} Be5 {[%emt 0:02:30]} 25. Qe3 {[%emt 0:01:30]} Rd6 {[%emt 0:02:30]} 26. f4 {[%emt 0:09:30]} Bxb2 {[%emt 0:00:30]} 27. Qa7 {[%emt 0:00:00]} Kd8 {[%emt 0:01:30]} 28. Qb8+ {[%emt 0:00:00]} Ke7 {[%emt 0:00:30]} 29. Qxc7+ {[%emt 0:00:00]} Kxe6 {[%emt 0:00:30]} 30. f5+ {[%emt 0:00:00]} gxf5 {[%emt 0:00:30]} 31. Nf4+ {[%emt 0:00:00]} Ke5 {[%emt 0:00:00]} 32. Qe7+ {[%emt 0:00:00]} 1-0

[Event "8th Ali Ipek Tournament 2020"]
[Site "Ankara"]
[Date "2020.03.08"]
[Round "6.20"]
[White "Ozturk, Ali"]
[Black "Simsek, Ayaz"]
[Result "1-0"]
[ECO "E94"]
[WhiteElo "1590"]
[BlackElo "1055"]
[Annotator "NA"]
[PlyCount "123"]
[EventDate "2020.03.04"]
[EventType "swiss"]
[EventCountry "TUR"]
[SourceTitle "playchess.com"]
[Source "ChessBase"]
[SourceQuality "1"]
[TimeControl "5400+30"]

1. d4 {[%emt 0:00:30]} Nf6 {[%emt 0:00:30]} 2. Nf3 {[%emt 0:00:00]} g6 {[%emt 0:00:00]} 3. c4 {[%emt 0:01:00]} Bg7 {[%emt 0:00:00]} 4. Nc3 {[%emt 0:00:30]} d6 {[%emt 0:01:30]} 5. e4 {[%emt 0:00:30]} O-O {[%emt 0:00:30]} 6. Be2 {[%emt 0:00:00]} Nbd7 {[%emt 0:00:30]} 7. O-O {[%emt 0:00:00]} e5 {[%emt 0:02:30]} 8. Be3 {[%emt 0:00:30]} exd4 {[%emt 0:00:30]} 9. Nxd4 {[%emt 0:00:30]} Nc5 {[%emt 0:02:30]} 10. f3 {[%emt 0:02:30]} Ne6 {[%emt 0:00:30]} 11. Qd2 {[%emt 0:00:30]} Bd7 {[%emt 0:03:30]} 12. Rad1 {[%emt 0:00:30]} Qe7 {[%emt 0:01:30]} 13. Nd5 {[%emt 0:02:30]} Nxd5 {[%emt 0:01:30]} 14. cxd5 {[%emt 0:00:30]} Nxd4 {[%emt 0:00:30]} 15. Bxd4 {[%emt 0:00:00]} a6 {[%emt 0:01:30]} 16. Bxg7 {[%emt 0:02:00]} Kxg7 {[%emt 0:02:30]} 17. Qc3+ {[%emt 0:00:30]} Qe5 {[%emt 0:00:30]} 18. Rc1 {[%emt 0:27:30]} Rac8 {[%emt 0:03:30]} 19. Rfd1 {[%emt 0:05:30]} f5 {[%emt 0:05:30]} 20. Rd2 {[%emt 0:06:30]} Qxc3 {[%emt 0:00:30]} 21. Rxc3 {[%emt 0:00:30]} Rf7 {[%emt 0:00:30]} 22. Rdc2 {[%emt 0:01:30]} Bb5 {[%emt 0:02:30]} 23. Bxb5 {[%emt 0:02:30]} axb5 {[%emt 0:00:30]} 24. exf5 {[%emt 0:00:30]} Rxf5 {[%emt 0:02:30]} 25. Rxc7+ {[%emt 0:02:30]} Rxc7 {[%emt 0:00:30]} 26. Rxc7+ {[%emt 0:00:00]} Rf7 {[%emt 0:00:30]} 27. Rxf7+ {[%emt 0:07:00]} Kxf7 {[%emt 0:00:30]} 28. Kf2 {[%emt 0:00:30]} Kf6 {[%emt 0:00:30]} 29. f4 {[%emt 0:00:00]} Kf5 {[%emt 0:00:30]} 30. Kf3 {[%emt 0:00:00]} h6 {[%emt 0:00:30]} 31. g4+ {[%emt 0:00:30]} Kf6 {[%emt 0:00:30]} 32. h4 {[%emt 0:01:30]} h5 {[%emt 0:00:30]} 33. gxh5 {[%emt 0:01:30]} gxh5 {[%emt 0:00:30]} 34. Ke4 {[%emt 0:00:30]} Kg6 {[%emt 0:00:30]} 35. f5+ {[%emt 0:00:00]} Kf6 {[%emt 0:00:30]} 36. a3 {[%emt 0:01:00]} b6 {[%emt 0:00:30]} 37. Kf4 {[%emt 0:00:30]} b4 {[%emt 0:00:30]} 38. axb4 {[%emt 0:00:30]} b5 {[%emt 0:00:30]} 39. b3 {[%emt 0:00:00]} Kg7 {[%emt 0:00:30]} 40. Kg5 {[%emt 0:00:00]} Kf7 {[%emt 0:00:00]} 41. Kxh5 {[%emt 0:00:30]} Kf6 {[%emt 0:00:00]} 42. Kh6 {[%emt 0:00:00]} Kxf5 {[%emt 0:00:30]} 43. Kg7 {[%emt 0:00:00]} Kg4 {[%emt 0:00:30]} 44. Kf6 {[%emt 0:00:30]} Kxh4 {[%emt 0:00:30]} 45. Ke6 {[%emt 0:00:00]} Kg5 {[%emt 0:00:30]} 46. Kxd6 {[%emt 0:00:00]} Kf6 {[%emt 0:00:00]} 47. Kc7 {[%emt 0:00:00]} Ke7 {[%emt 0:00:00]} 48. d6+ {[%emt 0:00:00]} Ke8 {[%emt 0:00:00]} 49. d7+ {[%emt 0:00:30]} Kf7 {[%emt 0:00:00]} 50. d8=Q {[%emt 0:00:30]} Ke6 {[%emt 0:00:00]} 51. Qd7+ {[%emt 0:00:30]} Ke5 {[%emt 0:00:00]} 52. Qxb5+ {[%emt 0:00:00]} Ke4 {[%emt 0:00:30]} 53. Qc4+ {[%emt 0:00:00]} Ke5 {[%emt 0:00:00]} 54. b5 {[%emt 0:00:30]} Kf5 {[%emt 0:00:00]} 55. b6 {[%emt 0:00:00]} Ke5 {[%emt 0:00:30]} 56. b7 {[%emt 0:00:00]} Kf5 {[%emt 0:00:00]} 57. b8=Q {[%emt 0:00:30]} Ke5 {[%emt 0:00:00]} 58. Qbb5+ {[%emt 0:00:00]} Kf6 {[%emt 0:00:00]} 59. Qcc6+ {[%emt 0:00:00]} Ke7 {[%emt 0:00:00]} 60. Qe5+ {[%emt 0:00:30]} Kf7 {[%emt 0:00:30]} 61. Qcf6+ {[%emt 0:00:30]} Kg8 {[%emt 0:00:30]} 62. Qg7# {[%emt 0:00:00]} 1-0

[Event "8th Ali Ipek Tournament 2020"]
[Site "Ankara"]
[Date "2020.03.08"]
[Round "7.4"]
[White "Ozates, Mert"]
[Black "Demirci, Murat"]
[Result "0-1"]
[ECO "A01"]
[WhiteElo "1810"]
[BlackElo "1821"]
[Annotator "NA RC"]
[PlyCount "48"]
[EventDate "2020.03.04"]
[EventType "swiss"]
[EventCountry "TUR"]
[SourceTitle "playchess.com"]
[Source "ChessBase"]
[SourceQuality "1"]
[TimeControl "5400+30"]

1. b3 {[%emt 0:00:30]} Nf6 {[%emt 0:02:30]} 2. Bb2 {[%emt 0:00:00]} g6 {[%emt 0:00:30]} 3. Bxf6 {[%emt 0:00:00]} exf6 {[%emt 0:00:00]} 4. c4 {[%emt 0:00:00]} Bg7 {[%emt 0:00:00]} 5. Nc3 {[%emt 0:00:00]} O-O {[%emt 0:00:30]} 6. g3 {[%emt 0:00:00]} f5 {[%emt 0:01:30]} 7. Bg2 {[%emt 0:03:00]} c6 {[%emt 0:01:30]} 8. Rc1 {[%emt 0:02:30]} Qa5 {[%emt 0:00:30]} 9. Qc2 $15 {[%emt 0:02:30]} ({White should play} 9. d4 $11) 9... Na6 {[%emt 0:03:30]} 10. Qb1 {[%emt 0:06:30]} Nb4 {[%emt 0:10:30]} 11. a4 {[%emt 0:02:30]} d5 {[%emt 0:00:30]} 12. cxd5 {[%emt 0:02:30]} cxd5 {[%emt 0:01:30]} 13. Nf3 {[%emt 0:02:30]} d4 {[%emt 0:02:30]} 14. Na2 {[%emt 0:00:30]} Re8 {[%emt 0:11:30]} 15. Nxb4 {[%emt 0:20:30]} Qxb4 {[%emt 0:00:30]} 16. O-O {[%emt 0:01:30]} Rxe2 {[%emt 0:16:30]} 17. Qd3 {[%emt 0:07:30]} Re8 {[%emt 0:01:30]} 18. Rc7 {[%emt 0:02:30]} Bf6 {[%emt 0:11:30]} 19. h4 {[%emt 0:02:30]} Rb8 {[%emt 0:03:30]} 20. Rc4 {[%emt 0:05:30]} Qb6 {[%emt 0:01:30]} 21. Nxd4 {[%emt 0:09:30]} Rd8 {[%emt 0:06:30]} 22. a5 {[%emt 0:00:00]} Qd6 {[%emt 0:02:30]} 23. Qf3 {[%emt 0:06:00]} Bxd4 {[%emt 0:00:30]} 24. Qe3 {[%emt 0:01:30]} Qf4 {[%emt 0:00:30]} 0-1

[Event "8th Ali Ipek Tournament 2020"]
[Site "Ankara"]
[Date "2020.03.08"]
[Round "7.5"]
[White "Ergani, Efe"]
[Black "Akin, Yagiz Cinar"]
[Result "1-0"]
[ECO "A26"]
[WhiteElo "1668"]
[BlackElo "1861"]
[Annotator "NA RC"]
[PlyCount "71"]
[EventDate "2020.03.04"]
[EventType "swiss"]
[EventCountry "TUR"]
[SourceTitle "playchess.com"]
[Source "ChessBase"]
[SourceQuality "1"]
[TimeControl "5400+30"]

1. Nf3 {[%emt 0:00:30]} g6 {[%emt 0:00:30]} 2. g3 {[%emt 0:00:00]} Bg7 {[%emt 0:00:00]} 3. Bg2 {[%emt 0:00:00]} d6 {[%emt 0:00:00]} 4. O-O {[%emt 0:00:30]} e5 {[%emt 0:00:00]} 5. d3 {[%emt 0:00:30]} Ne7 {[%emt 0:00:00]} 6. c4 {[%emt 0:01:30]} O-O {[%emt 0:00:00]} 7. Nc3 {[%emt 0:00:30]} Nbc6 {[%emt 0:00:00]} 8. Rb1 {[%emt 0:00:30]} f5 {[%emt 0:00:30]} 9. Bd2 {[%emt 0:06:30]} a5 {[%emt 0:06:30] is the legacy move (9...h6).} 10. a3 {[%emt 0:00:30]} h6 {[%emt 0:00:00]} 11. b4 {[%emt 0:03:30] A26: English Opening vs King's Indian with ...Nc6 and d3.} axb4 {[%emt 0:00:00]} 12. axb4 {[%emt 0:00:00]} Be6 {[%emt 0:00:30]} 13. b5 {[%emt 0:05:00]} Nb8 {[%emt 0:00:30]} 14. Qc2 {[%emt 0:04:30]} Nd7 {[%emt 0:00:30] [#]} 15. Na4 $146 {[%emt 0:08:30]} ({Predecessor:} 15. Ra1 Nc5 16. Be3 Nd7 17. Rxa8 Qxa8 18. Nd5 Qd8 19. Nxe7+ Qxe7 20. Nh4 Qf6 21. Bxb7 {0-1 (40) Sumachev,D (2164)-Purgin,N (2214) Kirov 2014}) 15... g5 {[%emt 0:09:30]} 16. Bb4 {[%emt 0:04:30]} b6 {[%emt 0:04:30]} 17. Nd2 {[%emt 0:02:30]} Ra7 {[%emt 0:01:30]} 18. Nc3 {[%emt 0:01:30]} Nf6 {[%emt 0:02:30]} 19. Ra1 {[%emt 0:03:30]} Rxa1 {[%emt 0:00:30]} 20. Rxa1 {[%emt 0:00:00]} Qd7 {[%emt 0:04:30]} 21. Ra7 {[%emt 0:03:00]} f4 {[%emt 0:01:30]} 22. Nde4 {[%emt 0:10:30]} Nxe4 {[%emt 0:02:30]} 23. Bxe4 {[%emt 0:02:30]} fxg3 {[%emt 0:04:30]} 24. hxg3 {[%emt 0:00:00]} Nc8 {[%emt 0:03:30]} 25. Rb7 {[%emt 0:04:00]} Ne7 {[%emt 0:05:30]} (25... Bf6 $16 26. Nd5 Bd8) 26. Qa2 {[%emt 0:05:30]} h5 {[%emt 0:00:00] [#]} 27. Qa7 $1 {[%emt 0:03:30]} Nc8 {[%emt 0:00:00]} 28. Qb8 {[%emt 0:01:30]} Qf7 {[%emt 0:02:30]} 29. f3 {[%emt 0:01:30]} h4 {[%emt 0:01:30]} 30. Qxc7 {[%emt 0:01:30]} Qf6 {[%emt 0:01:30]} 31. Nd5 {[%emt 0:01:30]} Bxd5 {[%emt 0:00:30]} 32. Bxd5+ {[%emt 0:00:30]} Kh8 {[%emt 0:00:00] [#]} 33. Be6 $1 {[%emt 0:01:30]} e4 {[%emt 0:02:00]} 34. dxe4 {[%emt 0:06:04]} Qa1+ $18 {[%emt 0:03:30]} 35. Kg2 {[%emt 0:00:37]} Qb2 {[%emt 0:00:30]} 36. Bd2 {[%emt 0:00:00]} 1-0

[Event "8th Ali Ipek Tournament 2020"]
[Site "Ankara"]
[Date "2020.03.08"]
[Round "7.7"]
[White "Ersahince, Umut Utku"]
[Black "Caberoglu, Arda"]
[Result "1-0"]
[ECO "B00"]
[WhiteElo "1645"]
[BlackElo "1784"]
[Annotator "NA RC"]
[PlyCount "79"]
[EventDate "2020.03.04"]
[EventType "swiss"]
[EventCountry "TUR"]
[SourceTitle "playchess.com"]
[Source "ChessBase"]
[SourceQuality "1"]
[TimeControl "5400+30"]

1. e4 {[%emt 0:00:30]} b6 {[%emt 0:00:30]} 2. d4 {[%emt 0:00:00]} Bb7 {[%emt 0:00:00]} 3. Bd3 {[%emt 0:00:00]} e6 {[%emt 0:00:00]} 4. Nf3 {[%emt 0:01:30]} d5 {[%emt 0:02:30]} 5. Qe2 {[%emt 0:02:30]} Nf6 {[%emt 0:01:30]} 6. e5 {[%emt 0:02:30]} Ne4 {[%emt 0:00:30]} 7. Nbd2 {[%emt 0:03:30]} Nxd2 {[%emt 0:02:30]} 8. Bxd2 {[%emt 0:00:30]} c5 {[%emt 0:00:30]} 9. c3 {[%emt 0:01:30]} Nc6 {[%emt 0:00:00]} 10. O-O {[%emt 0:01:30]} Be7 {[%emt 0:00:00]} 11. g3 {[%emt 0:04:30]} cxd4 {[%emt 0:04:30]} 12. cxd4 {[%emt 0:00:30]} O-O {[%emt 0:00:30]} 13. Bc3 {[%emt 0:10:30]} Bb4 {[%emt 0:05:30]} 14. h4 {[%emt 0:02:30]} h6 {[%emt 0:06:30]} 15. Rae1 {[%emt 0:11:30]} Bxc3 {[%emt 0:04:30]} 16. bxc3 {[%emt 0:00:00]} Ne7 {[%emt 0:00:30]} 17. Bb1 {[%emt 0:05:00]} a5 {[%emt 0:07:30]} 18. Kg2 {[%emt 0:11:30]} Ba6 {[%emt 0:09:30]} 19. Qc2 {[%emt 0:00:30]} g6 {[%emt 0:00:00]} 20. Rh1 {[%emt 0:02:30]} h5 {[%emt 0:01:00]} 21. Ng5 {[%emt 0:08:30]} Nf5 {[%emt 0:01:30]} 22. f3 {[%emt 0:02:30]} Rc8 {[%emt 0:16:30]} 23. g4 {[%emt 0:04:30]} Nxh4+ {[%emt 0:11:30]} 24. Rxh4 {[%emt 0:01:30]} Qxg5 {[%emt 0:00:30]} 25. Rxh5 {[%emt 0:00:00]} Qf4 {[%emt 0:02:30]} 26. Reh1 {[%emt 0:05:38]} f5 {[%emt 0:01:30]} 27. exf6 {[%emt 0:00:46]} Qxf6 {[%emt 0:01:30]} 28. Rh8+ {[%emt 0:00:29]} Qxh8 {[%emt 0:00:30]} 29. Rxh8+ {[%emt 0:00:44]} Kxh8 {[%emt 0:00:30]} 30. Qxg6 {[%emt 0:00:00]} Rc7 {[%emt 0:00:30]} 31. Qh6+ {[%emt 0:03:09]} Kg8 {[%emt 0:00:30]} 32. Qxe6+ {[%emt 0:00:04]} Kh8 {[%emt 0:00:00]} 33. Qxb6 {[%emt 0:01:00]} Bf1+ {[%emt 0:02:52]} 34. Kxf1 {[%emt 0:02:28]} Rxf3+ {[%emt 0:00:03]} 35. Kg2 {[%emt 0:03:08]} Rcxc3 {[%emt 0:00:23]} 36. Qg6 {[%emt 0:03:31]} Rg3+ {[%emt 0:00:45]} 37. Kf2 {[%emt 0:00:14]} Rgf3+ {[%emt 0:00:27]} 38. Ke2 {[%emt 0:00:46]} Rh3 {[%emt 0:00:08]} 39. Qf7 {[%emt 0:00:56]} Rh2+ {[%emt 0:02:16]} 40. Kd1 {[%emt 0:00:05]} 1-0

[Event "8th Ali Ipek Tournament 2020"]
[Site "Ankara"]
[Date "2020.03.08"]
[Round "7.8"]
[White "Alkan, Omer Tarik"]
[Black "Ceylan, Arda (Ali Riza)"]
[Result "1/2-1/2"]
[ECO "C02"]
[WhiteElo "1757"]
[BlackElo "1637"]
[Annotator "NA RC"]
[PlyCount "60"]
[EventDate "2020.03.04"]
[EventType "swiss"]
[EventCountry "TUR"]
[SourceTitle "playchess.com"]
[Source "ChessBase"]
[SourceQuality "1"]
[TimeControl "5400+30"]

1. e4 {[%emt 0:00:30]} e6 {[%emt 0:00:30]} 2. d4 {[%emt 0:00:30]} d5 {[%emt 0:00:00]} 3. e5 {[%emt 0:00:00]} c5 {[%emt 0:00:00]} 4. c3 {[%emt 0:00:00]} Nc6 {[%emt 0:00:30]} 5. Nf3 {[%emt 0:00:30]} Qb6 {[%emt 0:00:30]} 6. Bd3 {[%emt 0:00:00]} cxd4 {[%emt 0:00:00]} 7. cxd4 {[%emt 0:00:00]} Bd7 {[%emt 0:00:00]} 8. O-O {[%emt 0:00:00]} Nxd4 {[%emt 0:00:30]} 9. Nbd2 {[%emt 0:00:00]} Nc6 {[%emt 0:00:30]} 10. Nb3 {[%emt 0:00:00]} Nge7 {[%emt 0:00:00]} 11. Be3 {[%emt 0:00:00]} Qc7 {[%emt 0:00:00]} 12. Nc5 {[%emt 0:00:00]} Ng6 {[%emt 0:00:00]} 13. Rc1 {[%emt 0:04:00]} Bxc5 {[%emt 0:00:00]} 14. Bxc5 {[%emt 0:02:30]} Ncxe5 {[%emt 0:00:30]} 15. Nxe5 {[%emt 0:10:30]} Qxe5 {[%emt 0:01:30]} 16. Qb3 {[%emt 0:02:30]} Bc6 {[%emt 0:01:30]} 17. Ba3 {[%emt 0:06:30]} Rc8 {[%emt 0:10:30]} 18. Bb5 {[%emt 0:05:30]} Qc7 {[%emt 0:03:30]} 19. Rc2 {[%emt 0:02:30]} a6 {[%emt 0:03:30]} 20. Bxc6+ {[%emt 0:09:30]} bxc6 {[%emt 0:00:30]} 21. Rfc1 {[%emt 0:00:00]} Ne5 {[%emt 0:02:30]} 22. Qa4 {[%emt 0:00:00]} f6 {[%emt 0:01:30]} 23. f4 {[%emt 0:02:30]} Nc4 {[%emt 0:09:30]} 24. b3 {[%emt 0:00:30]} Qa7+ {[%emt 0:03:30]} 25. Kh1 {[%emt 0:00:30]} Nxa3 {[%emt 0:00:30]} 26. Rxc6 {[%emt 0:01:30]} Rxc6 {[%emt 0:00:30]} 27. Rxc6 {[%emt 0:05:30]} Kf7 {[%emt 0:01:30]} 28. Qxa3 {[%emt 0:00:30]} Qe3 {[%emt 0:04:30]} 29. g3 {[%emt 0:02:30]} Qe1+ {[%emt 0:04:30]} 30. Kg2 {[%emt 0:00:30]} Qe2+ {[%emt 0:00:00]} 1/2-1/2

[Event "8th Ali Ipek Tournament 2020"]
[Site "Ankara"]
[Date "2020.03.08"]
[Round "7.9"]
[White "Genc, Arda"]
[Black "Kayaman, Metin"]
[Result "1-0"]
[ECO "D04"]
[WhiteElo "1734"]
[BlackElo "1519"]
[Annotator "NA RC"]
[PlyCount "93"]
[EventDate "2020.03.04"]
[EventType "swiss"]
[EventCountry "TUR"]
[SourceTitle "playchess.com"]
[Source "ChessBase"]
[SourceQuality "1"]
[TimeControl "5400+30"]

1. d4 {[%emt 0:00:30]} d5 {[%emt 0:01:30]} 2. Nf3 {[%emt 0:00:00]} Nf6 {[%emt 0:00:30]} 3. e3 {[%emt 0:00:00]} Bf5 {[%emt 0:02:30]} 4. Bd3 {[%emt 0:01:30]} Bxd3 {[%emt 0:00:30]} 5. Qxd3 {[%emt 0:00:00]} c6 {[%emt 0:00:30]} 6. O-O {[%emt 0:01:00]} Nbd7 {[%emt 0:00:00]} 7. b3 {[%emt 0:00:30]} e6 {[%emt 0:00:00]} 8. Bb2 {[%emt 0:00:30]} Be7 {[%emt 0:01:30]} 9. Nbd2 {[%emt 0:02:30]} O-O {[%emt 0:00:30]} 10. c4 {[%emt 0:01:30]} a5 {[%emt 0:01:30]} 11. Rfd1 {[%emt 0:05:30]} a4 {[%emt 0:01:30]} 12. e4 {[%emt 0:04:30]} dxe4 {[%emt 0:01:30]} 13. Nxe4 {[%emt 0:00:30]} Nxe4 {[%emt 0:00:30]} 14. Qxe4 {[%emt 0:00:30]} Nf6 {[%emt 0:00:00]} 15. Qc2 {[%emt 0:01:30]} axb3 {[%emt 0:00:00]} 16. Qxb3 {[%emt 0:00:30]} Ra6 {[%emt 0:03:30]} 17. a4 {[%emt 0:04:30]} Qb6 {[%emt 0:02:30]} 18. Qxb6 {[%emt 0:18:30]} Rxb6 {[%emt 0:00:00]} 19. Ra2 {[%emt 0:03:30]} Ra8 {[%emt 0:01:00]} 20. Rda1 {[%emt 0:07:30]} Rb4 {[%emt 0:02:30]} 21. Nd2 {[%emt 0:00:30]} Rb6 {[%emt 0:05:30]} 22. Bc3 {[%emt 0:02:30]} Rba6 {[%emt 0:00:30]} 23. a5 {[%emt 0:08:30]} Bd8 {[%emt 0:06:30]} 24. Nb3 {[%emt 0:05:30]} Ne4 {[%emt 0:01:30]} 25. Bb4 {[%emt 0:00:30]} b6 {[%emt 0:01:30]} 26. f3 {[%emt 0:00:30]} Nf6 {[%emt 0:00:30]} 27. Ra3 {[%emt 0:02:30]} bxa5 {[%emt 0:03:30]} 28. Nxa5 {[%emt 0:01:30]} Bxa5 {[%emt 0:00:00]} 29. Rxa5 {[%emt 0:01:30]} Rxa5 {[%emt 0:00:00]} 30. Rxa5 {[%emt 0:00:30]} Rxa5 {[%emt 0:00:30]} 31. Bxa5 {[%emt 0:00:00]} Kf8 {[%emt 0:00:30]} 32. Kf2 {[%emt 0:00:00]} Ke7 {[%emt 0:00:00]} 33. Ke3 {[%emt 0:00:00]} Kd7 {[%emt 0:00:00]} 34. h4 {[%emt 0:01:00]} Ne8 {[%emt 0:01:30]} 35. Bb4 {[%emt 0:01:30]} Nd6 {[%emt 0:00:30]} 36. Bxd6 {[%emt 0:01:30]} Kxd6 {[%emt 0:00:30]} 37. Ke4 {[%emt 0:01:30]} c5 {[%emt 0:02:30]} 38. f4 {[%emt 0:05:01]} f5+ {[%emt 0:00:30]} 39. Kd3 {[%emt 0:00:25]} h5 {[%emt 0:03:30]} 40. g3 {[%emt 0:00:43]} g6 {[%emt 0:00:00]} 41. dxc5+ {[%emt 0:00:21]} Kxc5 {[%emt 0:00:00]} 42. Kc3 {[%emt 0:00:00]} e5 {[%emt 0:03:30]} 43. fxe5 {[%emt 0:00:30]} g5 {[%emt 0:00:00]} 44. hxg5 {[%emt 0:00:30]} f4 {[%emt 0:00:00]} 45. Kd3 {[%emt 0:00:30]} fxg3 {[%emt 0:00:30]} 46. Ke3 {[%emt 0:00:30]} h4 {[%emt 0:00:30]} 47. Kf3 {[%emt 0:00:00]} 1-0

[Event "8th Ali Ipek Tournament 2020"]
[Site "Ankara"]
[Date "2020.03.08"]
[Round "7.10"]
[White "Tastan, Tuna Yasin"]
[Black "Nazli, Sertan"]
[Result "0-1"]
[ECO "C50"]
[WhiteElo "1535"]
[BlackElo "1745"]
[Annotator "NA RC"]
[PlyCount "56"]
[EventDate "2020.03.04"]
[EventType "swiss"]
[EventCountry "TUR"]
[SourceTitle "playchess.com"]
[Source "ChessBase"]
[SourceQuality "1"]
[TimeControl "5400+30"]

1. e4 {[%emt 0:00:30]} e5 {[%emt 0:04:30]} 2. Nf3 {[%emt 0:00:30]} Nc6 {[%emt 0:01:30]} 3. Bc4 {[%emt 0:01:30]} Nf6 {[%emt 0:00:30]} 4. d3 {[%emt 0:02:30]} Bc5 {[%emt 0:00:30]} 5. Be3 {[%emt 0:05:30]} Bb6 {[%emt 0:08:30]} 6. Nc3 {[%emt 0:03:30]} d6 {[%emt 0:05:30]} 7. Qd2 {[%emt 0:08:30]} h6 {[%emt 0:00:30]} 8. h3 {[%emt 0:04:30]} Be6 {[%emt 0:00:30]} 9. Bxe6 {[%emt 0:07:30]} fxe6 {[%emt 0:00:30]} 10. Bxb6 {[%emt 0:07:30]} axb6 {[%emt 0:00:30]} 11. d4 {[%emt 0:00:30]} Qe7 {[%emt 0:05:30]} 12. dxe5 {[%emt 0:06:30]} dxe5 {[%emt 0:00:30]} 13. O-O {[%emt 0:04:30]} O-O {[%emt 0:00:30]} 14. Rad1 {[%emt 0:03:30]} Rf7 {[%emt 0:18:30]} 15. a3 {[%emt 0:08:30]} Nh5 {[%emt 0:01:30]} 16. Ne2 {[%emt 0:00:30]} Rxf3 {[%emt 0:13:30]} 17. gxf3 {[%emt 0:01:30]} Nd4 {[%emt 0:00:00]} 18. Nxd4 {[%emt 0:04:30]} exd4 {[%emt 0:11:00]} 19. Kg2 {[%emt 0:12:18]} Rf8 {[%emt 0:02:30]} 20. Rg1 {[%emt 0:04:23]} e5 {[%emt 0:06:31]} 21. Kf1 {[%emt 0:05:12]} Qh4 {[%emt 0:00:17]} 22. Ke1 {[%emt 0:03:06]} Rxf3 {[%emt 0:01:45]} 23. Qe2 {[%emt 0:00:53]} Re3 {[%emt 0:05:52]} 24. Rg4 {[%emt 0:04:02]} Rxe2+ {[%emt 0:00:17]} 25. Kxe2 {[%emt 0:00:00]} Qxh3 {[%emt 0:00:24]} 26. Rdg1 {[%emt 0:00:07]} d3+ {[%emt 0:00:46]} 27. Kd2 {[%emt 0:00:00]} Qf3 {[%emt 0:01:14]} 28. R1g2 {[%emt 0:00:48]} g5 {[%emt 0:01:00]} 0-1